Workbook

Sheet En Cours Usinage
A5: Client | B5: étapes | C5: type de travail | D5: Emplacement | E5: Gamme | F5: Date de prise en charge | G5: OF | H5: DT | I5: DESIGNATION | J5: Opérateur | K5: Phase | L5: description | M5: gabarit | N5: Machines | O5: commentaires | P5: QTE CDEE | Q5: QTE EFFECTUE | R5: reste à faire | S5: temps de cycle / pcs | T5: REBUT | U5: temps de prod | V5: temps de panne | W5: DATE DE SORTIE PREVU | X5: temps de prod restant | Y5: Date de sortie réalisable | Z5: Destination | AA5: recherche si mois en cours
A6: RENAULT | B6: EC | H6: 1919 | J6: Jacques | K6: FINAL | N6: FRAISEUSE CN NUM | P6: 50 | Q6: 20 | R6: =Tableau17[[#This Row],[ QTE CDEE ]]-Tableau17[[#This Row],[QTE EFFECTUE]] -> 30 | S6: 0.01388888889 | X6: =Tableau17[[#This Row],[temps de cycle / pcs]]*Tableau17[[#This Row],[reste à faire]] -> 0.4166666667 | AA6: FALSE
R7: =Tableau17[[#This Row],[ QTE CDEE ]]-Tableau17[[#This Row],[QTE EFFECTUE]] -> 0 | X7: =Tableau17[[#This Row],[temps de cycle / pcs]]*Tableau17[[#This Row],[reste à faire]] -> 0 | AA7: FALSE
R8: =Tableau17[[#This Row],[ QTE CDEE ]]-Tableau17[[#This Row],[QTE EFFECTUE]] -> 0 | X8: =Tableau17[[#This Row],[temps de cycle / pcs]]*Tableau17[[#This Row],[reste à faire]] -> 0 | AA8: FALSE
R9: =Tableau17[[#This Row],[ QTE CDEE ]]-Tableau17[[#This Row],[QTE EFFECTUE]] -> 0 | X9: =Tableau17[[#This Row],[temps de cycle / pcs]]*Tableau17[[#This Row],[reste à faire]] -> 0 | AA9: FALSE
R10: =Tableau17[[#This Row],[ QTE CDEE ]]-Tableau17[[#This Row],[QTE EFFECTUE]] -> 0 | X10: =Tableau17[[#This Row],[temps de cycle / pcs]]*Tableau17[[#This Row],[reste à faire]] -> 0 | AA10: FALSE
R11: =Tableau17[[#This Row],[ QTE CDEE ]]-Tableau17[[#This Row],[QTE EFFECTUE]] -> 0 | X11: =Tableau17[[#This Row],[temps de cycle / pcs]]*Tableau17[[#This Row],[reste à faire]] -> 0 | AA11: FALSE
R12: =Tableau17[[#This Row],[ QTE CDEE ]]-Tableau17[[#This Row],[QTE EFFECTUE]] -> 0 | X12: =Tableau17[[#This Row],[temps de cycle / pcs]]*Tableau17[[#This Row],[reste à faire]] -> 0 | AA12: FALSE
R13: =Tableau17[[#This Row],[ QTE CDEE ]]-Tableau17[[#This Row],[QTE EFFECTUE]] -> 0 | X13: =Tableau17[[#This Row],[temps de cycle / pcs]]*Tableau17[[#This Row],[reste à faire]] -> 0 | AA13: FALSE
C16: si dans une ligne il ya EC dans colonne "étape" et Jacques dans colonne "Opérateur" alors le tableau de la page "JAUGE OP" se remplie avec les indication des colonnes "DT", nombre de pièces (QTE CDEE), pièces fini (QTE EFFECTUE), temps de cycle / pièces

Sheet JAUGES OP
A2: Vert | B2: 80 | C2: CARTER
A3: Orange | B3: 10
A4: rouge | B4: 10
A5: Somme | B5: =SUM(B2:B4) -> 100
A8: =C15 -> 0.7142857143 | B8: =C15*100 -> 71.42857143 | C8: =B8/100 -> 0.7142857143 | E8: Phase : | F8: 1
A9: =B13 -> 7027 | B9: 1.5 | E9: Machines : | F9: NUM
A10: =D15 -> 0.2083333333 | B10: =SUM(B2:B5)-B8-B9 -> 127.0714286
B12: DT | C12: nb pièces | D12: TPS DE CYCLE / PCS | E12: pièces fini | F12: reste
B13: 7027 | C13: 70 | D13: 0.01041666667 | E13: 50 | F13: =C13-E13 -> 20
B15: Jacques | C15: =SUM(E13/C13) -> 0.7142857143 | D15: =F13*D13 -> 0.2083333333 | E15: =(D15/8.5)*24 -> 0.5882352941
C16: calcul jauge | D16: reste en H | E16: reste en jour

Sheet Données
A1: DATE | B1: OF | C1: N°DT | D1: DENOMINATION | E1: OPERATEUR | F1: PHASE | G1: description | H1: GABARIT | I1: MACHINES | J1: Nb pieces total | K1: pièces usinée | L1: Rebuts | M1: % de perte | N1: TPS DE PRODUCTION | O1: TPS DE CYCLE PAR PIECES | P1: NB PIECES PAR HEURES | Q1: TPS DE PANNE | R1: temps de production cumulé / machine | S1: nombre d'utilisations | T1: temps de pannes totale | U1: pourcentage de production / pannes | V1: Gamme | W1: Destination | X1: Client
A2: 2019-12-04 | C2: 9304.301 | D2: bossage | E2: Laurent | F2: FINAL | G2: tournage suivant plan | I2: TOUR CN | J2: 18 | K2: 18 | L2: 0 | M2: =L2/K2 -> 0 | N2: 0.3333333333 | O2: =Tableau1[[#This Row],[TPS DE PRODUCTION]]/Tableau1[[#This Row],[pièces usinée]] -> 0.01851851852 | P2: =IF(Tableau1[[#This Row],[TPS DE CYCLE PAR PIECES]],0.0416/Tableau1[[#This Row],[TPS DE CYCLE PAR PIECES]],0) -> 2.2464 | Q2: 0 | R2: =SUMIFS($N$1:$N$1134,$I$1:$I$1134,I2) -> 0.3333333333 | S2: =COUNTIF(I:I,I2) -> 1 | T2: =SUMIFS($Q$1:$Q$1134,$I$1:$I$1134,I2) -> 0 | U2: =1-(T2/R2) -> 1
A3: 2019-12-03 | C3: 1999 | D3: sangle | E3: Franck | F3: FINAL | G3: montage | I3: 2240 | J3: 11 | K3: 11 | L3: 0 | M3: 0 | N3: 0.07291666667 | O3: =Tableau1[[#This Row],[TPS DE PRODUCTION]]/Tableau1[[#This Row],[pièces usinée]] -> 0.006628787879 | P3: =IF(Tableau1[[#This Row],[TPS DE CYCLE PAR PIECES]],0.0416/Tableau1[[#This Row],[TPS DE CYCLE PAR PIECES]],0) -> 6.275657143 | Q3: 0 | R3: 0.07291666667 | S3: 1 | T3: 0 | U3: 1
A4: 2019-12-03 | C4: 2476 | D4: deflecteurs | E4: Jonathan | F4: 1 | G4: mise à hauteur | I4: Cazeneuve 304 | J4: 320 | K4: 280 | L4: 2 | M4: 0.007142857143 | N4: 0.3333333333 | O4: =Tableau1[[#This Row],[TPS DE PRODUCTION]]/Tableau1[[#This Row],[pièces usinée]] -> 0.00119047619 | P4: =IF(Tableau1[[#This Row],[TPS DE CYCLE PAR PIECES]],0.0416/Tableau1[[#This Row],[TPS DE CYCLE PAR PIECES]],0) -> 34.944 | Q4: 0 | R4: 0.3333333333 | S4: 1 | T4: 0 | U4: 1
A5: 2019-12-03 | C5: 9450 | D5: tube coudé | E5: Jean-marie | F5: FINAL | G5: decoupe en bié | I5: FRAISEUSE HURON 7828 | J5: 31 | K5: 31 | L5: 0 | M5: 0 | N5: 0.15625 | O5: =Tableau1[[#This Row],[TPS DE PRODUCTION]]/Tableau1[[#This Row],[pièces usinée]] -> 0.005040322581 | P5: =IF(Tableau1[[#This Row],[TPS DE CYCLE PAR PIECES]],0.0416/Tableau1[[#This Row],[TPS DE CYCLE PAR PIECES]],0) -> 8.25344 | Q5: 0 | R5: 1.197916667 | S5: 2 | T5: 0 | U5: 1
A6: 2020-03-24 | B6: PF0211/020 | C6: 2020.002 | D6: bossage | E6: Jacques | F6: FINAL | G6: perçage | H6: K 504 | I6: FRAISEUSE CN NUM | J6: 50 | K6: 50 | L6: 2 | M6: =L6/K6 -> 0.04 | N6: 0.08472222222 | O6: =Tableau1[[#This Row],[TPS DE PRODUCTION]]/Tableau1[[#This Row],[pièces usinée]] -> 0.001694444444 | P6: =IF(Tableau1[[#This Row],[TPS DE CYCLE PAR PIECES]],0.0416/Tableau1[[#This Row],[TPS DE CYCLE PAR PIECES]],0) -> 24.55081967 | Q6: 0h 00min | R6: 0.08472222222 | S6: 1 | T6: 0 | U6: =1-(T6/R6) -> 1 | V6: OUI | W6: SOUDURE | X6: biloute
A7: 2020-03-21 | B7: PF0211 | C7: 1975.1 | D7: bilu | E7: Béatrice | F7: FINAL | G7: chanf | H7: K 012 | I7: FRAISEUSE HURON 7828 | J7: 200 | K7: 200 | L7: 1 | M7: =L7/K7 -> 0.005 | N7: 1.041666667 | O7: =Tableau1[[#This Row],[TPS DE PRODUCTION]]/Tableau1[[#This Row],[pièces usinée]] -> 0.005208333333 | P7: =IF(Tableau1[[#This Row],[TPS DE CYCLE PAR PIECES]],0.0416/Tableau1[[#This Row],[TPS DE CYCLE PAR PIECES]],0) -> 7.9872 | Q7: 1h 00min | R7: 1.197916667 | S7: 2 | T7: 0 | U7: =1-(T7/R7) -> 1 | V7: NON | W7: PRESSE | X7: bibi

Sheet Liste
A1: Opérateur | C1: type de travail | E1: ETAPE | G1: Machine | I1: operateur | K1: Phases | N1: GAMME | P1: DESTINATION
A2: Jacques | C2: fraisage | E2: EC | G2: TOUR CN | I2: Jacques | K2: Montage | N2: OUI | P2: SOUDURE
A3: Jean-marie | C3: taraudage | E3: ATT | G3: FRAISEUSE CN NUM | I3: Jean-marie | K3: REPRISE | N3: NON | P3: PRESSE
A4: Béatrice | C4: fraisurage | E4: OK | G4: CENTRE USINAGE BRIDGEPORT | I4: Béatrice | K4: FINAL | P4: QUALITER
A5: Franck | C5: tournage | E5: PB | G5: FRAISEUSE HURON 7828 | I5: Franck | K5: Reprise outils | P5: SOUS TRAITANCE
A6: Laurent | C6: reprise | G6: ROSCAMAT | I6: Laurent | K6: Redressage | P6: EXPEDITION
A7: Castera stagière | C7: réparation | G7: TOUR RAMO T36 7817 | I7: Castera stagière | K7: réglage | P7: CATAPHOREZE
A8: Téo stagière | G8: Cazeneuve 304 | I8: Téo stagière | K8: 1 | P8: PEINTURE
A9: Isabelle | G9: Radiale 7808 | I9: Isabelle | K9: 2 | P9: USINAGE
A10: Jonathan | G10: HURE 7814 | I10: Jonathan | K10: 3 | P10: PLIEUSE
A11: Romain | G11: TOUR 3310 | I11: Romain | K11: 4 | P11: ZONE PIECE FINI USINAGE
A12: Loïs | G12: DUFOUR 3322 | I12: Loïs | K12: 5 | P12: MONTAGE
G13: MARTIN 7820 | K13: 6
G14: CAZENEUVE 3330 | K14: 7
G15: CAZENEUVE 3307 | K15: 8
G16: VOEST 3303 | K16: 9
G17: TOUR 3339 | K17: 10
G18: BOSCH 3340
G19: PERCEUSE A COLONNE CINCINNATI
G20: PERCEUSE A COLONNE 7812
G21: PERCEUSE A COLONNE 7813
G22: PERCEUSE A COLONNE 3326
G23: PERCEUSE A COLONNE 3327
G24: PERCEUSE A COLONNE 3311
G25: PERCEUSE A COLONNE 7811
G26: Ebogueuse 4032
G27: SABLEUSE
G28: RECTIFIEUSE
G29: Mortaiseuse 3341
G30: 2240
G31: GRAVEUSE
G32: MANUEL
G33: CAZENEUVE 3308
G34: rectifieuse 7824 (petite)
